Cogmind - Beta 14 @@@ ROGUE MODE // 2024.11.21 @ 20:35:30 Player: akira Result: Destroyed by S-10 Pest with Light Assault Rifle Performance ------------- Evolutions (1) 500 Regions Visited (2) 400 Robots Destroyed (16) 80 Value Destroyed (398) 398 Prototype IDs (0) 0 Alien Tech Used (0) 0 Bonus (0) 0 TOTAL SCORE: 1378 Bonus ------- None Cogmind --------- Core Integrity 0/400 Matter 300/300 Energy 100/100 System Corruption 0% Temperature Cool (0) Movement Core (50) Location -9/Materials Parts ------- > --- POWER (1) -------- (None) > --- PROPULSION (2) --- (None) > --- UTILITY (4) ------ (None) > --- WEAPON (2) ------- Scythe > --- INVENTORY (5) ---- Light Ion Engine Aluminum Leg Aluminum Leg Flight Unit Improved Grenade Launcher Peak State ------------ > --- POWER ------------ Light Deuterium Engine > --- PROPULSION ------- Aluminum Leg Aluminum Leg > --- UTILITY ---------- Small Storage Unit Light Armor Plating Tractor Beam > --- WEAPON ----------- Autogun Scythe > --- INVENTORY -------- Light Ion Engine Aluminum Leg Aluminum Leg High-capacity Matter Pod Autogun Improved Grenade Launcher Mining Laser [Rating: 14] Favorites ----------- Power Ion Engine Engine Ion Engine Propulsion Aluminum Leg Leg Aluminum Leg Flight Unit Flight Unit Utility Small Storage Unit Device Tractor Beam Storage Small Storage Unit Processor Targeting Computer Protection Light Armor Plating Weapon Scythe Energy Gun EM Pulse Gun Ballistic Gun Autogun Special Weapon Mining Laser Slashing Weapon Scythe Build | -11 -10 -9 ------- Run | Yrd Mat Mat Slots Evolved 2 | . . 2 Power . | . . . Propulsion . | . . . Utility 2 | . . 2 Weapon . | . . . Parts Attached 20 | 4 3 13 Power 5 | 1 . 4 Engine 5 | 1 . 4 Core . | . . . Reactor . | . . . Propulsion 6 | 2 . 4 Treads . | . . . Leg 4 | 2 . 2 Wheel . | . . . Hover . | . . . Flight 2 | . . 2 Utility 4 | 1 1 2 Device 1 | . 1 . Storage 1 | 1 . . Processor 1 | . . 1 Hackware . | . . . Protection 1 | . . 1 Artifact . | . . . Weapon 5 | . 2 3 Energy Gun 2 | . 1 1 Energy Cannon . | . . . Ballistic Gun 1 | . . 1 Ballistic Cannon . | . . . Launcher . | . . . Special Weapon 1 | . 1 . Impact Weapon . | . . . Slashing Weapon 1 | . . 1 Piercing Weapon . | . . . Special Melee Weapon . | . . . Unidentified Prototypes . | . . . Parts Lost 11 | . . 11 Power 3 | . . 3 Propulsion 4 | . . 4 Utility 3 | . . 3 Weapon 1 | . . 1 Highest Loss Streak 4 | . . 4 To Critical Strikes . | . . . Average Slot Usage (%) 78 | . 91 70 Engine 8 | . 14 5 Leg 21 | . 28 16 Device 11 | . 13 10 Storage 11 | . 14 10 Processor 1 | . . 2 Protection 2 | . . 4 Energy Gun 8 | . 14 5 Ballistic Gun 1 | . . 2 Special Weapon 2 | . 6 . Slashing Weapon 6 | . . 10 Peak Build Rating 14 | 4 7 14 Average Rating 8 | 3 6 10 On Entrance 3 | . 4 7 Naked Turns . | . . . Heaviest Build 19 | 10 14 19 Greatest Support 20 | 20 20 20 Greatest Overweight (x) 3 | . . 3 Average Overweight (x) . | . . . Largest Inventory Capacity 8 | 8 8 8 Average Capacity 7 | 7 8 7 Most Carried 8 | 5 8 8 Average Carried 6 | 3 6 7 Final Capacity 8 | 8 8 5 Final Carried 8 | 5 8 5 Class Distribution -------------------- 100% | Mutant Dominant Class ---------------- Mutant | -10/Materials Mutant | -9/Materials Resources | -11 -10 -9 ----------- Run | Yrd Mat Mat Matter Collected 584 | 222 38 324 Remotely 360 | . 38 322 Salvage Created 490 | . 98 392 Parts 41 | . 2 39 Haulers Intercepted . | . . . Recyclers Shooed . | . . . Parts Field Recycled . | . . . Retrieved Matter . | . . . Parts Self-Destructed . | . . . Prevented . | . . . Kills | -11 -10 -9 ------- Run | Yrd Mat Mat Combat Hostiles Destroyed 16 | . 2 14 Melee 14 | . . 14 Guns 2 | . 2 . Classes Destroyed 3 | . 1 2 Swarmer 8 | . . 8 Grunt 5 | . 2 3 Sentry 3 | . . 3 Best Kill Streak 5 | . 2 5 Combat Bots Only 5 | . 2 5 Max Kills in Single Turn 1 | . 1 1 Gunslinging . | . . . Exploded . | . . . Melee 1 | . . 1 Uniques/NPCs Destroyed . | . . . Combat | -11 -10 -9 -------- Run | Yrd Mat Mat Hostile Shots Fired 152 | . 12 140 Missed 42 | . 5 37 Damage Taken 1135 | . 108 1027 Core 446 | . 46 400 Absorbed by Shields . | . . . Core Remaining (%) 90 | 100 81 . Volleys Fired 13 | . 11 2 Largest 1 | . 1 1 Hottest 40 | . 40 40 Shots Fired 13 | . 11 2 Gun 13 | . 11 2 Cannon . | . . . Launcher . | . . . Special . | . . . Kinetic 1 | . . 1 Thermal 1 | . . 1 Explosive . | . . . Electromagnetic 11 | . 11 . Robot Hit Streak 2 | . 2 2 Robot Miss Streak 2 | . 2 1 Penetration Max . | . . . Secondary Targets . | . . . Shots Hit Robots 31 | . 7 24 Core Hits 17 | . 4 13 Critical Kills . | . . . Critical Parts Destroyed . | . . . Critical Strikes 4 | . 1 3 Corrupt 1 | . 1 . Sever 3 | . . 3 Melee Attacks 41 | . . 41 Impact . | . . . Slashing 41 | . . 41 Piercing . | . . . Sneak Attacks . | . . . Combat Hostiles . | . . . Follow-up Attacks . | . . . Damage Inflicted 835 | . 98 737 Guns 110 | . 98 12 Cannons . | . . . Explosions . | . . . Melee 725 | . . 725 Ramming . | . . . Kinetic . | . . . Thermal 12 | . . 12 Explosive . | . . . Electromagnetic 98 | . 98 . Impact . | . . . Slashing 725 | . . 725 Piercing . | . . . Highest Corruption . | . . . Average Corruption . | . . . Corruption Purged . | . . . Corruption Blocked . | . . . Overload Shots . | . . . Overflow Damage 43 | . . 43 Projectiles . | . . . Explosions . | . . . Melee 43 | . . 43 Knockbacks . | . . . Impact . | . . . Kinetic . | . . . Secondary . | . . . Self-Inflicted Damage . | . . . Shots . | . . . Rammed . | . . . Targets Rammed . | . . . Kicked . | . . . Crushed . | . . . Highest Temperature 27 | . 27 1 Average Temperature 12 | . 13 1 Received Heat Transfer 129 | . 57 72 Siege Activations . | . . . Robots Corrupted . | . . . Combat Hostiles . | . . . Parts Fried . | . . . Impact Corruptions . | . . . Robots Melted . | . . . Combat Hostiles . | . . . Parts Melted . | . . . Heat Transferred 25 | . . 25 Parts Sabotaged . | . . . Parts Stolen . | . . . Parts Stripped . | . . . Power Chain Reactions . | . . . Alert | -11 -10 -9 ------- Run | Yrd Mat Mat Peak Influence 368 | . 80 368 Initial 33 | . . 33 Average 121 | . 55 177 Maximum Alert Level 1 | . . 1 Low Security (%) 74 | 100 100 56 Level 1 25 | . . 43 Level 2 . | . . . Level 3 . | . . . Level 4 . | . . . Level 5 . | . . . High Security . | . . . Max Security . | . . . Squads Dispatched 1 | . . 1 Investigation . | . . . Extermination . | . . . Reinforcement 1 | . . 1 Assault . | . . . Garrison . | . . . Intercept . | . . . Searches Triggered . | . . . Construction Impeded . | . . . Haulers Reinforced . | . . . Active Scanning Responses . | . . . Cargo Convoy Interrupts . | . . . Stealth | -11 -10 -9 --------- Run | Yrd Mat Mat Distress Signals 3 | . . 3 Communications Jammed . | . . . Distress Signals . | . . . Times Spotted 29 | . 3 26 Peak Tracking Total 10 | . 3 10 Tactical Retreats 5 | . . 5 Traps | -11 -10 -9 ------- Run | Yrd Mat Mat Traps Triggered 3 | . . 3 Indirectly . | . . . Trap Hack Attempts . | . . . Triggered . | . . . Disarmed . | . . . Reprogrammed . | . . . Reused . | . . . Traps Extracted . | . . . Installed . | . . . Triggered . | . . . Machines | -11 -10 -9 ---------- Run | Yrd Mat Mat Machines Disabled . | . . . Max in Single Turn . | . . . Machines Repaired . | . . . Machines Dismantled . | . . . Machines Sabotaged . | . . . Overloaded Fab Kills . | . . . Hacking | -11 -10 -9 --------- Run | Yrd Mat Mat Machines Accessed 4 | . 3 1 Terminals 3 | . 2 1 Fabricators . | . . . Repair Stations . | . . . Recycling Units 1 | . 1 . Scanalyzers . | . . . Garrison Access . | . . . Total Hacks 4 | . 3 1 Successful 4 | . 3 1 Failed . | . . . Catastrophic . | . . . Database Lockouts . | . . . Manual . | . . . Terminals 3 | . 2 1 Fabricators . | . . . Repair Stations . | . . . Recycling Units 1 | . 1 . Scanalyzers . | . . . Garrison Access . | . . . Terminal Hacks 3 | . 2 1 Alert Level 1 | . 1 . Reinforcement Status 1 | . . 1 Hauler Manifests 1 | . 1 . Fabricator Hacks . | . . . Repair Station Hacks . | . . . Recycling Unit Hacks 1 | . 1 . Retrieve Components 1 | . 1 . Scanalyzer . | . . . Garrison Access Hacks . | . . . Unauthorized Hacks . | . . . Terminals . | . . . Fabricators . | . . . Repair Stations . | . . . Recycling Units . | . . . Scanalyzers . | . . . Garrison Access . | . . . Data Cores Recovered . | . . . Used . | . . . Hacking Detections 2 | . 2 . Full Trace Events . | . . . Feedback Events . | . . . Feedback Blocked . | . . . Robot Schematics Acquired . | . . . Robots Built . | . . . Authchips . | . . . Time . | . . . Total Robot Build Rating . | . . . Part Schematics Acquired . | . . . Parts Built . | . . . Authchips . | . . . Time . | . . . Total Part Build Rating . | . . . Parts Repaired . | . . . Time . | . . . Parts Recycled . | . . . Recycled Matter . | . . . Retrieved Matter . | . . . Retrieved Components 2 | . 2 . Parts Scanalyzed . | . . . Part Schematics Acquired . | . . . Parts Damaged . | . . . Bothacking | -11 -10 -9 ------------ Run | Yrd Mat Mat Used RIF Installer . | . . . Robots Hacked . | . . . Non-combat . | . . . Combat . | . . . Robot Hacks Applied . | . . . Relay Couplers Released . | . . . Fabnet Peak Effective % . | . . . Robots Rewired . | . . . Allies Hacked . | . . . Hacks Repelled . | . . . Allies | -11 -10 -9 -------- Run | Yrd Mat Mat Total Allies . | . . . Largest Group . | . . . Highest-Rated Group . | . . . Highest-Rated Ally . | . . . Total Orders . | . . . Ally Attacks . | . . . Total Damage . | . . . Kills . | . . . Allies Corrupted . | . . . Allies Melted . | . . . Intel | -11 -10 -9 ------- Run | Yrd Mat Mat Robot Analysis Total . | . . . Derelict Logs Recovered . | . . . Drone Launches . | . . . Drone Recoveries . | . . . Exploration | -11 -10 -9 ------------- Run | Yrd Mat Mat Turns Passed 887 | 59 317 511 Spaces Moved 530 | 42 222 266 Core 9 | 3 . 6 Treads . | . . . Legs 498 | 39 222 237 Wheels . | . . . Hover . | . . . Flight 23 | . . 23 Fastest Speed 37 | 50 120 37 Average Speed 122 | 115 120 126 Slowest Speed 200 | 120 120 200 Overloaded Moves . | . . . Propulsion Burnouts . | . . . Robots Hopped . | . . . Cave-ins Triggered . | . . . Exploration Rate (%) 27 | 4 39 38 Regions Visited 2 Branch Regions . Pre-discovered Areas . | . . . Known Exits Taken . | . . . Unknown Exits Taken 2 | 1 1 . Scrap Searched . | . . . Spaces Dug . | . . . Terrain Destroyed . | . . . Melee . | . . . Projectile . | . . . AOE . | . . . Terrain Rammed . | . . . Walls Destroyed . | . . . Machines Disabled . | . . . Actions | -11 -10 -9 --------- Run | Yrd Mat Mat Total 691 | 50 261 380 Wait 55 | . 21 34 Move 528 | 41 221 266 Hop . | . . . Pick Up 21 | 5 5 11 Fast Attach 11 | 4 1 6 Attach 6 | . 2 4 Detach . | . . . Swap 3 | . . 3 Drop 13 | . . 13 Fire 13 | . 11 2 Melee 41 | . . 41 Ram . | . . . Kick . | . . . Crush . | . . . Escape Stasis . | . . . Rewire . | . . . Trap . | . . . Miscellaneous . | . . . Route ------- -11/Scrapyard -10/Materials -9/Materials History --------- Turn | Location | Event 4 | -11/Scrapyard | Discovered new exit (range 16) 60 | -11/Scrapyard | Entered Materials 226 | -10/Materials | Discovered new exit (range 10) 317 | -10/Materials | Build established: Mutant 377 | -10/Materials | Entered another Materials area 377 | -9/Materials | Evolved 2 slots: Utility x2 834 | -9/Materials | Core integrity fell below 50% 862 | -9/Materials | Lost 3 parts (1p1n1w) 880 | -9/Materials | Core integrity fell below 20% 888 | -9/Materials | Destroyed by S-10 Pest with Light Assault Rifle Last Messages --------------- 00835_ Acquired Flight Unit. 00839_ S-10 Pest destroyed. 00843_ Acquired Lgt. Ion Engine. 00844_ Acquired 10 matter. 00848_ Acquired Flight Unit. 00849_ Acquired 3 matter. 00849_ Acquired 7 matter. 00854_ Acquired Flight Unit. 00855_ Acquired 8 matter. 00855_ Dropped Hcp. Matter Pod. 00856_ Extracted 2 matter. 00856_ Dropped Autogun. 00856_ Dropped Mining Laser. 00857_ Dropped Sml. Storage Unit. 00861_ W-16 Scout sends out distress signal. 00865_ Destroyed Flight Unit. 00870_ Tractor Beam destroyed. 00871_ Lgt. Ion Engine destroyed. 00873_ Flight Unit destroyed. 00880_ S-10 Pest destroyed. Map ----- +----------------------------------------------------+ | ???????????????????????????????# """ """ """ | | ???????????????????????????????# | | ???????????????????????????????# | | ???????????????????????????????# | | ?????????????????????????????####+### ##+## | | ?????????????????????????????# !# ## | | ?????????????????????????????# += ## "" | | ?????????????????????????????# "" # ## "" | | ?????????????????????????????# T"=# ## "" | | ?????????????????????????????# "" ######+#### | | ?????????????????????????????# # # | | ???????????????????? ???????# ###### """ """ #### | | ??????????????????? #??? ??##?????# """ """ #??? | | ??????????????????? #??? ?????????# """ """ #??? | | ??????????????????? #??? ?????????# #??? | | ??????????????????? #??? +????????# #??? | | ??????????????????? #??? #????????# #??? | | ?????????????????? #??? #????????# #??? | | ?????????????????? #??? #??###########+#####??? | | ??????????######?? #??# T?? ?# #??????? | | ?????????##!!!!##? ! #??# #? ""?# #??????? | | ?????????#! !#? ????# #? """" ""??# #??????? | | ?????????# [######???# #??"""" ""??# #??????? | | ############# = ########## #???""" ???# #??????? | | ### ** =%#????? ???# #??????? | | # # % @ ########+##### #??????? | | ### [ s% #??????? | | + ] [s s #??????? | | """"" # ][[ u #??????? | | ??""""" + w ][ #??????? | | ??""""" # """"" ????? | | ??""""" # [%*% """"" ####???? | | ??""""" #+##+################# """"" #??????? | | ??""""" # [ [ [#???????????## """"" #??????? | | ???"""" # !=""" #????????????# """"" #??????? | | ??? # """[#????????????# """"" #??????? | | ??? ####### """!#????????????# """?" #??????? | | ???#??????# !|#????????????# ?? #??????? | | ??????????# #????????????# ?? #??????? | | ??????????# ""T"" #????????????# ?? #??????? | | ??????????# """"" #????????????+ ?? #??????? | | ??????????# #????????????? ??? ???????? | | ??????????##########???????????????????? ???????? | | ????????????????????????????????????????##???????? | | ?????????????????????????????????????????????????? | | ?????????????????????????????????????????????????? | | ?????????????????????????????????????????????????? | | ?????????????????????????????????????????????????? | | ?????????????????????????????????????????????????? | | | +----------------------------------------------------+ Best States ------------- Heat Dissipation 28 Energy Generation 14 Energy Capacity 250 Matter Stores 300 Matter Capacity 300 Sight Range 16 Terrain Scan Density 10 Armor Coverage 150 Evasion (%) 62 Targeting Accuracy 5 Item Schematics ----------------- None Robot Schematics ------------------ None Fabricated ------------ Nothing Alien Tech Used ----------------- None Achievements -------------- None Challenges ------------ None Game ------ Seed HypercooledGuidedPenetrator Manual? 0 Play Time 00:15:15 Cumulative 13.4 hours Start 2024.11.21 @ 20:22:26 End 2024.11.21 @ 20:35:30 Sessions 1 Manual Loads 0 Difficulty Rogue Special Mode None Game No. 21 Rogue 21 Adventurer 0 Explorer 0 Win Type - Total 0 Types 0/0/0/0/0/0/0/0/0 Lore% 4 Gallery% 14 Achievement% 16 Wizard Run 0 Options --------- Layout 1 ASCII 0 Keyboard 0 Movement Mouse Keybinds 0 Fullscreen 1 Font 16/SmallcapsGlow Map View 27x19 Zoom Use 66% Tactical HUD 1 Map Filters NONE Filters NONE Steam 1 RUN: 6b306aec-dd80-49ee-9fcf-264bef793da2